lending/lending_fUSD_20240703
["ID","MTS","AMOUNT","RATE_DAILY","PERIOD"]
[330998110,1719999041846,-166.48789305,0.0002,2]
[330998111,1719999041856,-37624.40802123,0.00021817,2]
[330998112,1719999041865,-781.2335,0.00021817,2]
[330998113,1719999041875,-5658.0354,0.00021817,2]
[330998114,1719999041885,-4419.9949,0.00021817,2]
[330998115,1719999041899,-4449.3938,0.00021817,2]
[330998116,1719999041909,-29185.3467,0.00021817,2]
[330998117,1719999041918,-712.36265439,0.00021817,2]
[330998118,1719999041927,-1322.23147084,0.00021817,2]
[330998119,1719999041938,-716.63369653,0.00021856,2]
[330998120,1719999041948,-716.63369653,0.00021856,2]
[330998121,1719999041957,-2018.95610953,0.00021869,2]
[330998122,1719999041967,-2005.83489757,0.00021884,2]
[330998123,1719999041978,-365.78699378,0.00021898,2]
[330998124,1719999041988,-491.0,0.000219,4]
[330998125,1719999041998,-257.0,0.000219,2]
[330998126,1719999042007,-356.0,0.000219,2]
[330998127,1719999042017,-1000.0,0.000219,2]
[330998128,1719999042027,-751.2693,0.000219,2]
[330998129,1719999042036,-225.0,0.000219,2]
[330998130,1719999042045,-154.77233767,0.00021905,2]
[330998131,1719999042056,-151.26,0.00021907,2]
[330998132,1719999042068,-151.26,0.00021907,2]
[330998133,1719999042078,-221.12276999,0.00021907,2]
[330998134,1719999042088,-151.26,0.00021907,2]
[330998135,1719999042098,-712.36265438,0.00021909,2]
[330998136,1719999042108,-1322.23147082,0.00021909,2]
[330998137,1719999042118,-1732.72761994,0.00021916,2]
[330998138,1719999042128,-883.0,0.00021916,2]
[330998139,1719999042138,-241329.4244141,0.00021917,7]
[330998140,1719999042148,-500.0,0.00021917,4]
[330998141,1719999042157,-574.87283849,0.00021917,4]
[330998142,1719999042167,-233.80164117,0.00021917,4]
[330998143,1719999042177,-1281.01,0.00021917,4]
[330998144,1719999042186,-661.81,0.00021917,4]
[330998145,1719999042195,-661.81,0.00021917,4]
[330998146,1719999042205,-661.81,0.00021917,4]
[330998147,1719999042215,-661.81,0.00021917,4]
[330998148,1719999042224,-661.81,0.00021917,4]
[330998149,1719999042233,-661.81,0.00021917,4]
[330998150,1719999042242,-661.81,0.00021917,4]
[330998151,1719999042251,-661.81,0.00021917,4]
[330998152,1719999042260,-661.81,0.00021917,4]
[330998153,1719999042270,-661.81,0.00021917,4]
[330998154,1719999042279,-661.81,0.00021917,4]
[330998155,1719999042289,-661.81,0.00021917,4]
[330998156,1719999042298,-501.67315245,0.00021917,4]
[330998157,1719999042310,-501.73367241,0.00021917,4]
[330998158,1719999042320,-502.11210242,0.00021917,4]
[330998159,1719999042330,-502.99643853,0.00021917,4]
[330998160,1719999042339,-500.0,0.00021917,4]
[330998161,1719999042348,-500.0,0.00021917,4]
[330998162,1719999042358,-501.39542112,0.00021917,4]
[330998163,1719999042367,-500.0,0.00021917,4]
[330998164,1719999042376,-500.0,0.00021917,4]
[330998165,1719999042387,-500.0,0.00021917,4]
[330998166,1719999042396,-500.0,0.00021917,4]
[330998167,1719999042406,-500.0,0.00021917,4]
[330998168,1719999042415,-500.0,0.00021917,4]
[330998169,1719999042424,-504.2280372,0.00021917,4]
[330998170,1719999042433,-500.0,0.00021917,4]
[330998171,1719999042443,-502.43925903,0.00021917,4]
[330998172,1719999042452,-500.0,0.00021917,4]
[330998173,1719999042462,-500.0,0.00021917,4]
[330998174,1719999042471,-500.0,0.00021917,4]
[330998175,1719999042480,-500.0,0.00021917,4]
[330998176,1719999042489,-501.18163621,0.00021917,4]
[330998177,1719999042499,-497.64165952,0.00021917,4]
[330998178,1719999042508,-504.67078891,0.00021917,4]
[330998179,1719999042518,-500.57605569,0.00021917,4]
[330998180,1719999042527,-497.70209685,0.00021917,4]
[330998181,1719999042536,-4075.87,0.00021917,4]
[330998182,1719999042546,-4075.87,0.00021917,4]
[330998183,1719999042555,-4075.87,0.00021917,4]
[330998184,1719999042564,-4075.87,0.00021917,4]
[330998185,1719999042574,-4075.87,0.00021917,4]
[330998186,1719999042583,-4075.87,0.00021917,4]
[330998187,1719999042592,-500.0,0.00021917,4]
[330998188,1719999042602,-4075.87,0.00021917,4]
[330998189,1719999042611,-4075.87,0.00021917,4]
[330998190,1719999042620,-4075.87,0.00021917,4]
[330998191,1719999042630,-4075.87,0.00021917,4]
[330998192,1719999042640,-500.40232574,0.00021917,4]
[330998193,1719999042650,-4075.87,0.00021917,4]
[330998194,1719999042660,-4075.87,0.00021917,4]
[330998195,1719999042669,-500.59355252,0.00021917,4]
[330998196,1719999042678,-500.35523907,0.00021917,4]
[330998197,1719999042688,-397.29651785,0.00021917,4]
[330998198,1719999042697,-502.6250026,0.00021917,4]
[330998199,1719999042707,-500.0,0.00021917,4]
[330998200,1719999042716,-500.0,0.00021917,4]
[330998201,1719999042726,-579.90531868,0.00021917,4]
[330998202,1719999042736,-500.45731054,0.00021917,4]
[330998203,1719999042745,-497.0064044,0.00021917,4]
[330998204,1719999042755,-200.0,0.00021917,4]
[330998205,1719999042764,-498.0,0.00021917,4]
[330998206,1719999042773,-500.48731682,0.00021917,4]
[330998207,1719999042783,-500.66708568,0.00021917,4]
[330998208,1719999042792,-501.03022211,0.00021917,4]
[330998209,1719999042801,-497.93365212,0.00021917,4]
[330998210,1719999042811,-500.0,0.00021917,4]
[330998211,1719999042820,-500.0,0.00021917,4]
[330998212,1719999042829,-500.51747789,0.00021917,4]
[330998213,1719999042839,-500.0,0.00021917,4]
[330998214,1719999042848,-500.0,0.00021917,4]
[330998215,1719999042857,-500.0,0.00021917,4]
[330998216,1719999042867,-500.0,0.00021917,4]
[330998217,1719999042876,-500.0,0.00021917,4]
[330998218,1719999042887,-500.0,0.00021917,4]
[330998219,1719999042900,-500.0,0.00021917,4]
[330998220,1719999042909,-500.0,0.00021917,4]
[330998221,1719999042919,-500.75340352,0.00021917,4]
[330998222,1719999042928,-500.0,0.00021917,4]
[330998223,1719999042938,-501.20494722,0.00021917,4]
[330998224,1719999042949,-500.0,0.00021917,4]
[330998225,1719999042959,-500.0,0.00021917,4]
[330998226,1719999042968,-501.23892003,0.00021917,4]
[330998227,1719999042980,-500.0,0.00021917,4]
[330998228,1719999042990,-501.75718517,0.00021917,4]
[330998229,1719999042999,-501.27547172,0.00021917,4]
[330998230,1719999043009,-540.73571991,0.00021917,4]
[330998231,1719999043020,-501.22865885,0.00021917,4]
[330998232,1719999043030,-394.64925753,0.00021917,4]
[330998233,1719999043039,-504.15570867,0.00021917,4]
[330998234,1719999043048,-537.72891473,0.00021917,4]
[330998235,1719999043058,-501.61577001,0.00021917,4]
[330998236,1719999043068,-502.18782841,0.00021917,4]
[330998237,1719999043077,-501.1765948,0.00021917,4]
[330998238,1719999043087,-501.48018374,0.00021917,4]
[330998239,1719999043096,-567.89,0.00021917,4]
[330998240,1719999043106,-567.89,0.00021917,4]
[330998241,1719999043115,-567.89,0.00021917,4]
[330998242,1719999043125,-506.40035322,0.00021917,4]
[330998243,1719999043134,-567.89,0.00021917,4]
[330998244,1719999043143,-501.93861515,0.00021917,4]
[330998245,1719999043153,-567.89,0.00021917,4]
[330998246,1719999043162,-567.89,0.00021917,4]
[330998247,1719999043171,-567.89,0.00021917,4]
[330998248,1719999043181,-503.53262809,0.00021917,4]
[330998249,1719999043191,-567.89,0.00021917,4]
[330998250,1719999043200,-567.89,0.00021917,4]
[330998251,1719999043211,-567.89,0.00021917,4]
[330998252,1719999043222,-504.90163496,0.00021917,4]
[330998253,1719999043231,-567.89,0.00021917,4]
[330998254,1719999043242,-501.81001638,0.00021917,4]
[330998255,1719999043251,-567.89,0.00021917,4]
[330998256,1719999043260,-500.0,0.00021917,4]
[330998257,1719999043270,-160.28,0.00021917,4]
[330998258,1719999043279,-500.0,0.00021917,4]
[330998259,1719999043288,-500.0,0.00021917,4]
[330998260,1719999043297,-503.70075394,0.00021917,4]
[330998261,1719999043307,-500.0,0.00021917,4]
[330998262,1719999043319,-500.89006144,0.00021917,4]
[330998263,1719999043330,-500.0,0.00021917,4]
[330998264,1719999043339,-500.0,0.00021917,4]
[330998265,1719999043349,-502.04012797,0.00021917,4]
[330998266,1719999043359,-500.76456354,0.00021917,4]
[330998267,1719999043369,-500.0,0.00021917,4]
[330998269,1719999043378,-500.0,0.00021917,4]
[330998271,1719999043388,-498.29843869,0.00021917,4]
[330998273,1719999043398,-502.49109231,0.00021917,4]
[330998276,1719999043407,-503.72837526,0.00021917,4]
[330998280,1719999043417,-525.85254405,0.00021917,4]
[330998284,1719999043427,-500.0,0.00021917,4]
[330998286,1719999043439,-501.45099465,0.00021917,4]
[330998287,1719999043448,-502.21155171,0.00021917,4]
[330998289,1719999043457,-502.93307377,0.00021917,4]
[330998291,1719999043467,-501.12098962,0.00021917,4]
[330998292,1719999043476,-503.80736281,0.00021917,4]
[330998293,1719999043487,-502.89824617,0.00021917,4]
[330998294,1719999043496,-501.86555905,0.00021917,4]
[330998295,1719999043505,-500.75425076,0.00021917,4]
[330998297,1719999043515,-500.0,0.00021917,4]
[330998298,1719999043526,-502.16889922,0.00021917,4]
[330998299,1719999043535,-539.57,0.00021917,4]
[330998300,1719999043545,-501.92811826,0.00021917,4]
[330998301,1719999043554,-500.0,0.00021917,4]
[330998302,1719999043564,-500.3491734,0.00021917,4]
[330998303,1719999043574,-500.0,0.00021917,4]
[330998304,1719999043583,-500.0,0.00021917,4]
[330998305,1719999043592,-558.73,0.00021917,4]
[330998306,1719999043602,-500.9683981,0.00021917,4]
[330998307,1719999043611,-501.05280478,0.00021917,4]
[330998308,1719999043621,-500.0,0.00021917,4]
[330998309,1719999043630,-500.0,0.00021917,4]
[330998310,1719999043641,-500.0,0.00021917,4]
[330998311,1719999043650,-175.03,0.00021917,4]
[330998312,1719999043660,-500.0,0.00021917,4]
[330998313,1719999043669,-561.35,0.00021917,4]
[330998314,1719999043679,-305.2840196,0.00021917,4]
[330998315,1719999043688,-500.0,0.00021917,4]
[330998316,1719999043699,-605.66,0.00021917,4]
[330998317,1719999043708,-622.75166504,0.00021917,4]
[330998318,1719999043717,-500.0,0.00021917,4]
[330998319,1719999043727,-500.0,0.00021917,4]
[330998320,1719999043736,-500.0,0.00021917,4]
[330998321,1719999043746,-500.0,0.00021917,4]
[330998322,1719999043755,-500.0,0.00021917,4]
[330998323,1719999043765,-500.0,0.00021917,4]
[330998324,1719999043775,-503.66115411,0.00021917,4]
[330998325,1719999043784,-500.0,0.00021917,4]
[330998326,1719999043794,-264.15,0.00021917,4]
[330998327,1719999043803,-500.0,0.00021917,4]
[330998328,1719999043813,-184.93454763,0.00021917,4]
[330998329,1719999043822,-500.0,0.00021917,4]
[330998330,1719999043831,-176.35,0.00021917,4]
[330998331,1719999043841,-632.24,0.00021917,4]
[330998332,1719999043851,-500.0,0.00021917,4]
[330998333,1719999043861,-500.0,0.00021917,4]
[330998334,1719999043870,-500.0,0.00021917,4]
[330998335,1719999043880,-500.0,0.00021917,4]
[330998336,1719999043891,-500.0,0.00021917,4]
[330998337,1719999043905,-501.30489523,0.00021917,4]
[330998338,1719999043914,-500.0,0.00021917,4]
[330998339,1719999043923,-500.0,0.00021917,4]
[330998340,1719999043933,-500.0,0.00021917,4]
[330998341,1719999043943,-500.0,0.00021917,4]
[330998342,1719999043952,-500.0,0.00021917,4]
[330998343,1719999043961,-504.54109918,0.00021917,4]
[330998344,1719999043970,-500.0,0.00021917,4]
[330998345,1719999043982,-455.6162808,0.00021917,4]
[330998346,1719999043991,-500.0,0.00021917,4]
[330998347,1719999044000,-502.14317234,0.00021917,4]
[330998348,1719999044009,-322.27,0.00021917,4]
[330998349,1719999044019,-500.0,0.00021917,4]
[330998350,1719999044028,-500.0,0.00021917,4]
[330998351,1719999044038,-500.0,0.00021917,4]
[330998352,1719999044047,-303.84,0.00021917,4]
[330998353,1719999044058,-500.0,0.00021917,4]
[330998354,1719999044067,-501.5527351,0.00021917,4]
[330998355,1719999044076,-500.0,0.00021917,4]
[330998356,1719999044086,-501.77449882,0.00021917,4]
[330998357,1719999044095,-501.78090081,0.00021917,4]
[330998358,1719999044105,-500.0,0.00021917,4]
[330998359,1719999044115,-500.0,0.00021917,4]
[330998360,1719999044124,-501.24449209,0.00021917,4]
[330998361,1719999044134,-500.0,0.00021917,4]
[330998362,1719999044143,-500.0,0.00021917,4]
[330998363,1719999044155,-502.34909194,0.00021917,4]
[330998364,1719999044165,-500.0,0.00021917,4]
[330998365,1719999044174,-500.0,0.00021917,4]
[330998366,1719999044184,-500.0,0.00021917,4]
[330998367,1719999044193,-500.0,0.00021917,4]
[330998368,1719999044202,-501.68768496,0.00021917,4]
[330998369,1719999044211,-500.0,0.00021917,4]
[330998370,1719999044220,-500.0,0.00021917,4]
[330998371,1719999044230,-500.0,0.00021917,4]
[330998372,1719999044238,-71.16686911,0.00021917,4]
[330998373,1719999044341,-428.83313089,0.00021917,4]
[330998374,1719999044351,-500.0,0.00021917,4]
[330998375,1719999044360,-283.54686911,0.00021917,4]
[330998376,1719999044373,-266.43764382,0.00021917,4]
[330998377,1719999044384,-475.49,0.00021917,4]
[330998378,1719999044394,-500.0,0.00021917,4]
[330998379,1719999044403,-500.0,0.00021917,4]
[330998380,1719999044413,-500.0,0.00021917,4]
[330998381,1719999044422,-500.0,0.00021917,4]
[330998382,1719999044432,-500.0,0.00021917,4]
[330998383,1719999044441,-500.0,0.00021917,4]
[330998384,1719999044450,-180.9046186,0.00021917,4]
[330998385,1719999044460,-500.0,0.00021917,4]
[330998386,1719999044469,-197.37054726,0.00021917,4]
[330998387,1719999044485,-302.89014335,0.00021917,4]
[330998388,1719999044494,-306.10633466,0.00021917,4]
[330998390,1719999044533,-166.48789305,0.0002,2]
[330998391,1719999044543,-198.20660274,0.00021917,4]
[330998392,1719999044552,-207.30160044,0.00021917,4]
[330998393,1719999044564,-292.69839956,0.00021917,4]
[330998394,1719999044573,-500.0,0.00021917,4]
[330998395,1719999044583,-500.0,0.00021917,4]
[330998396,1719999044592,-536.83,0.00021917,4]
[330998397,1719999044602,-503.77687745,0.00021917,4]
[330998398,1719999044610,-500.0,0.00021917,4]
[330998399,1719999044620,-500.0,0.00021917,4]
[330998400,1719999044630,-436.90609274,0.00021917,4]
[330998401,1719999044640,-503.32112836,0.00021917,4]
[330998402,1719999044649,-500.0,0.00021917,4]
[330998403,1719999044659,-501.55532777,0.00021917,4]
[330998404,1719999044668,-500.0,0.00021917,4]
[330998405,1719999044678,-290.41217412,0.00021917,4]
[330998406,1719999044695,-209.58782588,0.00021917,4]
[330998407,1719999044704,-233.84954245,0.00021917,4]
[330998408,1719999045245,-166.48789305,0.0002,2]
[330998409,1719999045255,-166.48789305,0.0002,2]
[330998410,1719999045264,-166.48789305,0.0002,2]
[330998411,1719999045274,-166.48789305,0.0002,2]
[330998412,1719999045284,-166.48789305,0.0002,2]
[330998413,1719999045294,-166.48789305,0.0002,2]
[330998414,1719999045303,-166.48789305,0.0002,2]
[330998415,1719999045498,-166.48789305,0.0002,2]
[330998416,1719999045508,-166.48789305,0.0002,2]
[330998417,1719999045518,-166.48789305,0.0002,2]
[330998418,1719999045528,-5326.0,0.000201,5]
[330998419,1719999045538,-266.15045755,0.00021917,4]
[330998420,1719999045547,-75.62041559,0.00021917,4]
[330998421,1719999045937,-424.37958441,0.00021917,4]
[330998422,1719999045949,-172.84,0.00021917,4]
[330998423,1719999045958,-500.0,0.00021917,4]
[330998424,1719999045968,-122.7804156,0.00021917,4]
[330998425,1719999045981,-1065.1495844,0.00021917,4]
[330998426,1719999045992,-137.67484361,0.00021917,4]
[330998427,1719999046004,-362.32515639,0.00021917,4]
[330998428,1719999046013,-491.88484461,0.00021917,4]
[330998429,1719999046025,-596.02446566,0.00021917,4]
[330998430,1719999046036,-100.02068973,0.00021917,4]
[330998431,1719999046045,-500.0,0.00021917,4]
[330998432,1719999046055,-430.62376817,0.00021917,4]
[330998433,1719999046067,-621.77784,0.00021917,4]
[330998434,1719999046094,-166.48789305,0.0002,2]
[330998435,1719999046104,-135.52839183,0.00021917,4]
[330998437,1719999046114,-502.3439266,0.00021917,4]
[330998438,1719999046124,-1187.93,0.00021917,4]
[330998439,1719999046134,-1187.93,0.00021917,4]
[330998440,1719999046144,-500.0,0.00021917,4]
[330998441,1719999046154,-500.0,0.00021917,4]
[330998442,1719999046163,-1187.93,0.00021917,4]
[330998443,1719999046174,-622.26,0.00021917,4]
[330998444,1719999046183,-500.0,0.00021917,4]
[330998445,1719999046193,-500.0,0.00021917,4]
[330998446,1719999046202,-504.60164687,0.00021917,4]
[330998447,1719999046211,-501.67764831,0.00021917,4]
[330998448,1719999046221,-500.0,0.00021917,4]
[330998449,1719999046231,-1187.93,0.00021917,4]
[330998450,1719999046240,-1187.93,0.00021917,4]
[330998451,1719999046250,-500.0,0.00021917,4]
[330998452,1719999046259,-1187.93,0.00021917,4]
[330998453,1719999046269,-235.87,0.00021917,4]
[330998454,1719999046278,-500.0,0.00021917,4]
[330998455,1719999046287,-500.0,0.00021917,4]
[330998456,1719999046297,-198.61,0.00021917,4]
[330998457,1719999046307,-1187.93,0.00021917,4]
[330998458,1719999046319,-500.0,0.00021917,4]
[330998459,1719999046328,-1187.93,0.00021917,4]
[330998460,1719999046338,-500.0,0.00021917,4]
[330998461,1719999046347,-1187.93,0.00021917,4]
[330998462,1719999046357,-1187.93,0.00021917,4]
[330998464,1719999046366,-500.0,0.00021917,4]
[330998465,1719999046376,-1187.93,0.00021917,4]
[330998466,1719999046386,-1187.93,0.00021917,4]
[330998467,1719999046395,-1187.93,0.00021917,4]
[330998468,1719999046404,-1187.93,0.00021917,4]
[330998469,1719999046414,-500.0,0.00021917,4]
[330998470,1719999046423,-500.0,0.00021917,4]
[330998471,1719999046433,-500.0,0.00021917,4]
[330998472,1719999046442,-165.34,0.00021917,4]
[330998473,1719999046452,-173.75951945,0.00021917,4]
[330998474,1719999046463,-500.0,0.00021917,4]
[330998475,1719999046472,-500.0,0.00021917,4]
[330998476,1719999046481,-500.0,0.00021917,4]
[330998477,1719999046491,-246.54,0.00021917,4]
[330998478,1719999046500,-500.0,0.00021917,4]
[330998479,1719999046510,-500.0,0.00021917,4]
[330998480,1719999046519,-611.45182589,0.00021917,4]
[330998481,1719999046528,-500.0,0.00021917,4]
[330998482,1719999046537,-500.0,0.00021917,4]
[330998483,1719999046547,-331.15,0.00021917,4]
[330998484,1719999046556,-500.0,0.00021917,4]
[330998485,1719999046566,-179.58387908,0.00021917,4]
[330998486,1719999046576,-500.0,0.00021917,4]
[330998487,1719999046585,-500.0,0.00021917,4]
[330998488,1719999046594,-200.0,0.00021917,4]
[330998489,1719999046603,-200.0,0.00021917,4]
[330998490,1719999046613,-200.0,0.00021917,4]
[330998491,1719999046622,-200.0,0.00021917,4]
[330998492,1719999046632,-500.0,0.00021917,4]
[330998493,1719999046641,-200.0,0.00021917,4]
[330998494,1719999046650,-200.0,0.00021917,4]
[330998495,1719999046660,-200.0,0.00021917,4]
[330998496,1719999046669,-200.0,0.00021917,4]
[330998497,1719999046678,-200.0,0.00021917,4]
[330998498,1719999046687,-200.0,0.00021917,4]
[330998499,1719999046697,-200.0,0.00021917,4]
[330998500,1719999046706,-500.0,0.00021917,4]
[330998501,1719999046716,-271.95846677,0.00021917,4]
[330998502,1719999046725,-500.0,0.00021917,4]
[330998503,1719999046734,-500.0,0.00021917,4]
[330998504,1719999046743,-500.0,0.00021917,4]
[330998505,1719999046753,-331.48,0.00021917,4]
[330998506,1719999046763,-500.0,0.00021917,4]
[330998507,1719999046773,-500.0,0.00021917,4]
[330998508,1719999046783,-500.0,0.00021917,4]
[330998509,1719999046792,-500.0,0.00021917,4]
[330998510,1719999046801,-500.0,0.00021917,4]
[330998511,1719999046811,-500.0,0.00021917,4]
[330998512,1719999046820,-500.0,0.00021917,4]
[330998513,1719999046830,-500.0,0.00021917,4]
[330998514,1719999046839,-500.0,0.00021917,4]
[330998515,1719999046848,-500.0,0.00021917,4]
[330998516,1719999046858,-500.0,0.00021917,4]
[330998517,1719999046868,-500.0,0.00021917,4]
[330998518,1719999046877,-500.0,0.00021917,4]
[330998519,1719999046888,-229.82,0.00021917,4]
[330998520,1719999046900,-500.0,0.00021917,4]
[330998521,1719999046910,-505.6382361,0.00021917,4]
[330998522,1719999046919,-500.0,0.00021917,4]
[330998523,1719999046929,-500.0,0.00021917,4]
[330998524,1719999046941,-500.0,0.00021917,4]
[330998525,1719999046952,-500.0,0.00021917,4]
[330998526,1719999046962,-500.0,0.00021917,4]
[330998527,1719999046974,-500.0,0.00021917,4]
[330998528,1719999046984,-500.0,0.00021917,4]
[330998529,1719999046994,-500.0,0.00021917,4]
[330998530,1719999047003,-648.97,0.00021917,4]
[330998531,1719999047012,-500.0,0.00021917,4]
[330998532,1719999047022,-500.0,0.00021917,4]
[330998533,1719999047031,-500.0,0.00021917,4]
[330998534,1719999047040,-500.0,0.00021917,4]
[330998535,1719999047050,-500.0,0.00021917,4]
[330998536,1719999047059,-385.80512262,0.00021917,4]
[330998537,1719999047069,-500.0,0.00021917,4]
[330998538,1719999047079,-500.0,0.00021917,4]
[330998539,1719999047088,-500.0,0.00021917,4]
[330998540,1719999047098,-501.50239322,0.00021917,4]
[330998541,1719999047107,-500.0,0.00021917,4]
[330998542,1719999047116,-500.0,0.00021917,4]
[330998543,1719999047126,-500.0,0.00021917,4]
[330998544,1719999047136,-500.0,0.00021917,4]
[330998545,1719999047145,-500.0,0.00021917,4]
[330998546,1719999047154,-500.0,0.00021917,4]
[330998547,1719999047164,-500.0,0.00021917,4]
[330998548,1719999047173,-500.0,0.00021917,4]
[330998549,1719999047183,-500.0,0.00021917,4]
[330998550,1719999047192,-500.0,0.00021917,4]
[330998551,1719999047202,-500.0,0.00021917,4]
[330998552,1719999047212,-500.0,0.00021917,4]
[330998553,1719999047222,-500.0,0.00021917,4]
[330998554,1719999047231,-587.6244121,0.00021917,4]
[330998555,1719999047240,-189.11,0.00021917,4]
[330998556,1719999047250,-500.0,0.00021917,4]
[330998557,1719999047259,-618.19720187,0.00021917,4]
[330998558,1719999047270,-500.0,0.00021917,4]
[330998559,1719999047279,-500.0,0.00021917,4]
[330998560,1719999047289,-500.0,0.00021917,4]
[330998561,1719999047299,-500.0,0.00021917,4]
[330998562,1719999047309,-500.0,0.00021917,4]
[330998563,1719999047321,-500.0,0.00021917,4]
[330998564,1719999047331,-603.34,0.00021917,4]
[330998565,1719999047340,-500.0,0.00021917,4]
[330998566,1719999047349,-500.0,0.00021917,4]
[330998567,1719999047358,-500.0,0.00021917,4]
[330998568,1719999047367,-500.0,0.00021917,4]
[330998569,1719999047376,-500.0,0.00021917,4]
[330998570,1719999047385,-500.0,0.00021917,4]
[330998571,1719999047393,-500.0,0.00021917,4]
[330998572,1719999047402,-500.0,0.00021917,4]
[330998573,1719999047411,-500.0,0.00021917,4]
[330998574,1719999047420,-500.0,0.00021917,4]
[330998575,1719999047428,-500.0,0.00021917,4]
[330998576,1719999047437,-500.0,0.00021917,4]
[330998577,1719999047446,-500.0,0.00021917,4]
[330998578,1719999047455,-500.0,0.00021917,4]
[330998579,1719999047464,-573.44471282,0.00021917,4]
[330998580,1719999047474,-500.0,0.00021917,4]
[330998581,1719999047483,-500.0,0.00021917,4]
[330998582,1719999047492,-500.0,0.00021917,4]
[330998583,1719999047502,-500.0,0.00021917,4]
[330998584,1719999047511,-500.0,0.00021917,4]
[330998585,1719999047521,-226.18,0.00021917,4]
[330998586,1719999047531,-500.0,0.00021917,4]
[330998587,1719999047542,-500.0,0.00021917,4]
[330998588,1719999047552,-500.0,0.00021917,4]
[330998589,1719999047561,-566.82,0.00021917,4]
[330998590,1719999047571,-500.0,0.00021917,4]
[330998591,1719999047580,-500.0,0.00021917,4]
[330998592,1719999047590,-555.08037637,0.00021917,4]
[330998593,1719999047601,-502.70260245,0.00021917,4]
[330998594,1719999047611,-500.0,0.00021917,4]
[330998595,1719999047621,-500.0,0.00021917,4]
[330998596,1719999047631,-500.0,0.00021917,4]
[330998597,1719999047644,-500.0,0.00021917,4]
[330998598,1719999047653,-500.0,0.00021917,4]
[330998599,1719999047667,-500.0,0.00021917,4]
[330998600,1719999047678,-500.0,0.00021917,4]
[330998601,1719999047688,-500.0,0.00021917,4]
[330998602,1719999047697,-500.0,0.00021917,4]
[330998603,1719999047707,-500.0,0.00021917,4]
[330998604,1719999047716,-538.96592965,0.00021917,4]
[330998605,1719999047726,-500.0,0.00021917,4]
[330998606,1719999047735,-500.0,0.00021917,4]
[330998607,1719999047744,-197.3,0.00021917,4]
[330998608,1719999047754,-500.0,0.00021917,4]
[330998609,1719999047763,-500.0,0.00021917,4]
[330998610,1719999047772,-194.39,0.00021917,4]
[330998611,1719999047782,-500.0,0.00021917,4]
[330998612,1719999047791,-500.0,0.00021917,4]
[330998613,1719999047800,-500.0,0.00021917,4]
[330998614,1719999047809,-500.0,0.00021917,4]
[330998615,1719999047818,-500.0,0.00021917,4]
[330998616,1719999047828,-500.0,0.00021917,4]
[330998617,1719999047837,-500.0,0.00021917,4]
[330998618,1719999047847,-500.0,0.00021917,4]
[330998619,1719999047856,-500.0,0.00021917,4]
[330998620,1719999047865,-500.0,0.00021917,4]
[330998621,1719999047875,-500.0,0.00021917,4]
[330998622,1719999047886,-500.0,0.00021917,4]
[330998623,1719999047898,-500.0,0.00021917,4]
[330998624,1719999047908,-500.0,0.00021917,4]
[330998625,1719999047918,-500.0,0.00021917,4]
[330998626,1719999047927,-500.0,0.00021917,4]
[330998627,1719999047938,-500.0,0.00021917,4]